Workbook

Sheet Estimated UBIT Calculator
A2: Calculating UBIT for Real Estate Investments in Tax-Advantaged Accounts*
A3: All light orange boxes require an entry. Hover over the red arrows for definitions and tips on getting the most accurate results from this tool. The second Excel tab below shows an example.
B5: Beginning Principal Balance Owed
B7: Monthly Principal Payments
B9: How Many Months Was the Property Held
B11: Ending Principal Balance Owed | C11: =C5-(C7*C9) -> 0
B13: Average Debt | C13: =(C5+C11)/2 -> 0
B15: Cost of Real Estate (or Cost Basis*)
B16: Initial Improvements and Closing Costs*
B17: Initial Cost Basis | C17: =C15+C16 -> 0
B18: Further Increases to Cost Basis
B19: Reductions to Cost Basis
B20: Ending Cost Basis | C20: =C17+(C18-C19) -> 0
B22: Average Cost Basis | C22: =(C17+C20)/2 -> 0
C23: =C13/C22 -> 
B24: Debt-Financed Ratio | C24: =ROUNDUP(C23,2) -> 
D25: Debt-Financed Amount
B26: Rental Income | D26: =C24*C26 -> 
B27: Operating Expenses and Other Deductions | D27: =C24*C27 -> 
B28: Depreciation | D28: =C24*C28 -> 
B30: Taxable Amount | C30: =(D26-(D27+D28)) -> 
B32: Allowable Exemption | C32: 1000
B33: Net Taxable Income Subject to UBIT | C33: =C30-C32 -> 
A35: If Net Taxable Income Subject to UBIT (Cell C33) is: | B35: Choose Appropriate Range Below | C35: Estimated UBIT
A37: Between $0 - $2,600 | C37: =IF(A74=1,SUM(C33*D47), "N/A") -> N/A
A39: Between $2,601 - $9,300 | C39: =IF(A75=1,SUM((C33-2600)*0.24)+260,"N/A") -> N/A
A41: Between $9,301 - $12,750 | C41: =IF(A76=1,SUM((C33-9300)*0.35)+1868,"N/A") -> N/A
A43: More Than $12,750 | C43: =IF(A77=1,SUM((C33-12750)*0.37)+3075.5,"N/A") -> N/A
B46: Net Taxable Income Subject to UBIT | D46: Tax Rate
B47: $0 - $2,600 | D47: 0.1
B48: Between $2,601 - $9,300 | D48: $260 + 24% of amount over $2,600
B49: Between $9,301 - $12,750 | D49: $1,868 + 35% of amount over $9,300
B50: More Than $12,750 | D50: $3,075.50 + 37% of amount over $12,750
A52: Thank you for downloading the IRA Tax Services UBIT Calculator! Hopefully you found this helpful in estimating your potential UBIT tax liability for your real estate investments in tax-advantaged accounts. If you have any questions about calculating or reporting UBIT, please contact IRA Tax Services at 303-604-6466 or www.irataxservices.com. If you would like to learn more about self-directed alternative investments or using your tax-advantage accounts with real estate investments, please visit New Direction Trust Company at www.ndtco.com.
A54: * Tax-advantaged accounts subject to Unrelated Business Income Tax (UBIT) or Unrelated Debt Financed Income (UDFI) may include Individual Retirement Accounts (Traditional, Roth, SIMPLE, and SEP IRAs), Health Savings Accounts (HSAs), CESAs (Educational IRAs), or qualified state tuition plans, such as 529s. Solo 401(k)s may be subject to UBIT as well, but the rules governing them are complex. Please contact a qualified tax professional, such as IRA Tax Services, with specific questions.
A60: DISCLAIMER: This calculator is meant for educational purposes only and should not be relied upon to complete tax forms or determine your potential UBIT tax liability to the Internal Revenue Service. Furthermore, this calculator is provided for your convenience and is neither tax advice nor intended to replace expert tax advice from a qualified advisor.
A74: 2
A75: 2
A76: 2
A77: 2

Sheet UBIT Example
A2: Calculating UBIT for Real Estate Investments in Tax-Advantaged Accounts*
A3: All light orange boxes require an entry. Hover over the red arrows for definitions and tips on getting the most accurate results from this tool. The second Excel tab below shows the calculations for Anna's real estate investment from the "How to Calculate UBIT for Real Estate" video as an additional reference. Visit https://ndtco.com/content/ubit-calculator for more information on UBIT calculations.
B5: Beginning Principal Balance Owed | C5: 175000
B7: Monthly Principal Payments | C7: 200
B9: How Many Months Was the Property Held | C9: 6
B11: Ending Principal Balance Owed | C11: =C5-(C7*C9) -> 173800
B13: Average Debt | C13: =(C5+C11)/2 -> 174400
B15: Cost of Real Estate (or Cost Basis*) | C15: 250000
B16: Initial Improvements and Closing Costs* | C16: 10000
B17: Initial Cost Basis | C17: =C15+C16 -> 260000
B18: Further Increases to Cost Basis | C18: 0
B19: Reductions to Cost Basis | C19: 5000
B20: Ending Cost Basis | C20: =C17+(C18-C19) -> 255000
B22: Average Cost Basis | C22: =(C17+C20)/2 -> 257500
C23: =C13/C22 -> 0.6772815534
B24: Debt-Financed Ratio | C24: =ROUNDUP(C23,2) -> 0.68
D25: Debt-Financed Amount
B26: Rental Income | C26: 17000 | D26: =C24*C26 -> 11560
B27: Operating Expenses and Other Deductions | C27: 10000 | D27: =C24*C27 -> 6800
B28: Depreciation | C28: 5000 | D28: =C24*C28 -> 3400
B30: Taxable Amount | C30: =D26-D27-D28 -> 1360
B32: Allowable Exemption | C32: 1000
B33: Net Taxable Income Subject to UBIT | C33: 46233
A35: If Net Taxable Income Subject to UBIT (Cell C33) is: | B35: Choose Appropriate Range Below | C35: Estimated UBIT
A37: Between $0 - $2,650 | C37: =IF(A72=1,SUM(C33*D47), "N/A") -> N/A
A39: Between $2,651 - $9,550 | C39: =IF(A73=1,SUM((C33-2651)*0.24)+265,"N/A") -> N/A
A41: Between $9,551 - $13,050 | C41: =IF(A74=1,SUM((C33-9551)*0.35)+1921,"N/A") -> N/A
A43: More Than $13,051 | C43: =IF(A75=1,SUM((C33-13051)*0.37)+3146,"N/A") -> 15423.34
B46: Net Taxable Income Subject to UBIT | D46: Tax Rate
B47: $0 - $2,650 | D47: 0.1
B48: Between $2,651 - $9,550 | D48: $265 + 24% of amount over $2,650
B49: Between $9,551 - $13,050 | D49: $1,921 + 35% of amount over $9,550
B50: More Than $13,051 | D50: $3,146 + 37% of amount over $13050
A52: * Tax-advantaged accounts subject to Unrelated Business Income Tax (UBIT) or Unrelated Debt Financed Income (UDFI) may include Individual Retirement Accounts (Traditional, Roth, SIMPLE, and SEP IRAs), Health Savings Accounts (HSAs), CESAs (Educational IRAs), or qualified state tuition plans, such as 529s. Solo 401(k)s may be subject to UBIT as well, but the rules governing them are complex. Please contact a qualified tax professional, such as IRA Tax Services, with specific questions.
A58: DISCLAIMER: This calculator is meant for educational purposes only and should not be relied upon to complete tax forms or determine your potential UBIT tax liability to the Internal Revenue Service. Furthermore, this calculator is provided for your convenience and is neither tax advice nor intended to replace expert tax advice from a qualified advisor.
A72: 2
A73: 2
A74: 2
A75: 1
